Cogmind - Beta 11 X9 @@@ ROGUE MODE // 2022.01.26 @ 17:00:06 Player: LU-1G1 Result: Destroyed by Tracker with Linked Autogun Performance ------------- Evolutions (9) 4500 Regions Visited (26) 5200 Robots Destroyed (126) 630 Value Destroyed (4177) 4177 Prototype IDs (240) 4800 Alien Tech Used (5) 1000 Bonus (9374) 9374 TOTAL SCORE: 29681 Bonus ------- Triggered Max Security 1000 High Alert Combat Kills 487 Follower Combat Kills 60 Entered DSFs 500 Aligned with FarCom 300 Met Data Miner 300 Used Data Conduit 3000 Met Zhirov 300 Found Hidden Lab 3000 Pursued by Intercept 500 Friendly Fire -73 Cogmind --------- Core Integrity 0/1600 Matter 295/300 Energy 48/200 System Corruption 13% Temperature Cool (0) Movement Core (150) Ox2 Location -1/Access Parts ------- > --- POWER (3) -------- (None) > --- PROPULSION (11) -- Combat Linear Gravjet > --- UTILITY (10) ----- Small Battery Advanced Target Analyzer > --- WEAPON (2) ------- Molecular Deconstructor > --- INVENTORY (5) ---- Medium Regenerative Plating Potential Cannon Peak State ------------ > --- POWER ------------ Light Quantum Reactor Light Quantum Reactor > --- PROPULSION ------- Field Propulsion Array Field Propulsion Array Diametric Drive Q-thruster Q-thruster Q-thruster Q-thruster Q-thruster > --- UTILITY ---------- Experimental Power Amplifier Experimental Heat Sink High-capacity Storage Unit Inertial Stasis Machine Enhanced Optical Array Advanced Melee Analysis Suite Improved Weapon Shielding Medium Regenerative Plating Advanced Hacking Suite > --- WEAPON ----------- Potential Cannon > --- INVENTORY -------- Impulse Thruster Small Storage Unit Gravity Neutralizing Apparatus Modified TNC Improved Armor Integrity Analyzer Advanced Actuator Array Improved Light Armor Plating Medium Regenerative Plating Improved Remote Force Field Deep Network Scanner Molecular Deconstructor Plasma Lance Enhanced Force Lance [Rating: 174] Favorites ----------- Power Ion Engine Engine Ion Engine Power Core Micro Nuclear Core Reactor Light Quantum Reactor Propulsion Cooled Cesium-ion Thruster Treads Light Treads Leg Aluminum Leg Wheel Wheel Hover Unit Improved Antigrav System Flight Unit Cooled Cesium-ion Thruster Utility Hacking Suite Device Improved Terrain Scanner Storage Large Storage Unit Processor Enhanced Optical Array Hackware Hacking Suite Protection Improved Weapon Shielding Weapon Light Assault Rifle Energy Gun Advanced Beam Rifle Energy Cannon Potential Cannon Ballistic Gun Light Assault Rifle Launcher Mini Grenade Launcher Special Weapon Advanced Remote Datajack Impact Weapon Hammer Slashing Weapon Power Sword Piercing Weapon Plasma Lance Special Melee Weapon Datajack Build | -11 -10 -10 -10 -9 -8 -7 -7 -7 -6 -6 -6 -6 -5 -5 -5 -4 -4 -4 -4 -3 -3 -3 -3 -2 -2 -1 ------- Run | Scr Mat Min Exi Min Mat Fac Low Low Fac Low Low Dat Pro Fac DSF Fac Upp Upp Zhi Pro Res Arm Lab Res Tes Acc Slots Evolved 18 | . . . . . 4 2 . . 2 . . . . 2 . 2 . . . . 2 . . 2 . 2 Power 1 | . . . . . . . . . . . . . . . . 1 . . . . . . . . . . Propulsion 9 | . . . . . 1 2 . . . . . . . 1 . 1 . . . . 1 . . 2 . 1 Utility 8 | . . . . . 3 . . . 2 . . . . 1 . . . . . . 1 . . . . 1 Weapon . | . . . . . . . . . . . . . . . . . . . . . . . . . . . Parts Attached 226 | 7 1 3 1 . 38 44 8 . 22 . 2 . . . 6 11 1 5 5 . 5 10 19 6 3 29 Power 24 | 1 . . . . 4 3 1 . 1 . 1 . . . 1 2 . 2 1 . . 2 2 1 . 2 Engine 10 | 1 . . . . 4 . . . . . 1 . . . 1 1 . 1 1 . . . . . . . Core 6 | . . . . . . 3 1 . 1 . . . . . . 1 . . . . . . . . . . Reactor 8 | . . . . . . . . . . . . . . . . . . 1 . . . 2 2 1 . 2 Propulsion 78 | 2 . . . . 13 16 4 . 13 . 1 . . . 1 3 . 1 . . 1 6 4 4 1 8 Treads 13 | 2 . . . . 9 1 . . . . . . . . . . . . . . . . . . . 1 Leg 11 | . . . . . 3 8 . . . . . . . . . . . . . . . . . . . . Wheel 1 | . . . . . . 1 . . . . . . . . . . . . . . . . . . . . Hover 9 | . . . . . . 1 1 . 3 . . . . . . . . . . . . . . . . 4 Flight 44 | . . . . . 1 5 3 . 10 . 1 . . . 1 3 . 1 . . 1 6 4 4 1 3 Utility 67 | 2 1 . 1 . 7 8 . . 7 . . . . . 4 4 1 2 4 . 2 2 9 1 . 12 Device 29 | 1 . . . . 2 3 . . 1 . . . . . . 1 1 1 3 . 1 1 6 1 . 7 Storage 7 | 1 1 . 1 . . 1 . . . . . . . . . 1 . . . . . 1 . . . 1 Processor 9 | . . . . . 1 1 . . 4 . . . . . . 2 . . . . . . . . . 1 Hackware 7 | . . . . . 1 2 . . 1 . . . . . 1 . . . 1 . . . . . . 1 Protection 15 | . . . . . 3 1 . . 1 . . . . . 3 . . 1 . . 1 . 3 . . 2 Artifact . | . . . . . . . . . . . . . . . . . . . . . . . . . . . Weapon 57 | 2 . 3 . . 14 17 3 . 1 . . . . . . 2 . . . . 2 . 4 . 2 7 Energy Gun 10 | 1 . 1 . . 4 3 . . . . . . . . . . . . . . . . 1 . . . Energy Cannon 2 | . . . . . . . . . . . . . . . . . . . . . . . 1 . 1 . Ballistic Gun 11 | 1 . 1 . . 5 4 . . . . . . . . . . . . . . . . . . . . Ballistic Cannon . | . . . . . . . . . . . . . . . . . . . . . . . . . . . Launcher 13 | . . 1 . . 5 6 1 . . . . . . . . . . . . . . . . . . . Special Weapon 2 | . . . . . . . . . . . . . . . . . . . . . . . . . . 2 Impact Weapon 1 | . . . . . . 1 . . . . . . . . . . . . . . . . . . . . Slashing Weapon 6 | . . . . . . 1 2 . 1 . . . . . . 2 . . . . . . . . . . Piercing Weapon 10 | . . . . . . . . . . . . . . . . . . . . . 2 . 2 . 1 5 Special Melee Weapon 2 | . . . . . . 2 . . . . . . . . . . . . . . . . . . . . Unidentified Prototypes 14 | . . . . . 2 1 . . 1 . . . . . . . 1 . 1 . . 1 5 . . 2 Parts Lost 93 | . . . . . 19 14 12 . 1 . . 1 . . 2 6 2 1 . . 2 . 2 2 6 23 Power 13 | . . . . . 3 2 1 . . . . . . . . 1 2 . . . 1 . 1 . . 2 Propulsion 41 | . . . . . 5 8 6 . 1 . . . . . . 1 . 1 . . . . 1 2 4 12 Utility 23 | . . . . . 4 1 3 . . . . 1 . . 1 3 . . . . 1 . . . 2 7 Weapon 16 | . . . . . 7 3 2 . . . . . . . 1 1 . . . . . . . . . 2 Highest Loss Streak 13 | . . . . . 13 4 9 . 1 . . 1 . . 1 4 1 1 . . 2 . 2 2 3 7 Average Slot Usage (%) 81 | . 100 100 100 100 73 84 55 61 66 100 100 98 93 82 81 91 94 93 90 94 78 94 75 78 76 43 Engine 4 | . 14 14 14 14 7 1 . . . . 5 6 6 5 5 6 5 . 1 5 . . . . . . Core 1 | . . . . . . 4 2 7 6 6 . . . . . . 3 . . . . . . . . . Reactor 1 | . . . . . . . . . . . . . . . . . . 4 5 5 4 5 5 8 7 2 Treads 9 | . 28 28 28 28 20 12 . . . . . . . . . . . . . . . . . . . . Leg 1 | . . . . . 4 4 . . . . . . . . . . . . . . . . . . . . Flight 15 | . . . . . . 10 14 23 20 33 33 33 33 29 30 35 36 35 31 31 29 37 25 32 27 9 Device 7 | . 14 14 14 14 4 7 . . 1 6 6 4 . . . . 1 5 6 10 9 13 6 11 11 8 Storage 6 | . 14 14 14 14 9 7 5 . . . . . . . . 1 5 5 5 5 4 4 4 4 4 2 Processor 8 | . . . . . 3 9 7 7 11 20 20 20 20 17 17 15 21 15 15 15 14 14 13 9 8 2 Hackware 5 | . . . . . 2 10 9 7 10 13 13 13 13 11 13 13 10 10 8 5 4 4 4 4 3 . Protection 3 | . . . . . 6 . . . . 6 6 6 6 5 5 9 . 4 5 5 . 4 10 8 8 4 Energy Gun 2 | . 14 5 . . 8 4 . . . . . . . . . . . . . . . . . . . . Ballistic Gun 5 | . 14 22 28 28 6 2 . . . . . . . . . . . . . . . . . . . . Launcher 1 | . . . . . 1 1 5 7 6 6 6 6 6 5 5 1 . . . . . . . . . . Slashing Weapon 2 | . . . . . . . 1 7 5 6 6 6 6 5 1 5 10 10 10 10 7 . . . . . Naked Turns 1 | . . . . . . . . . . . . . . . . . . . . . . . . . . 1 Heaviest Build 93 | 14 19 19 29 29 34 34 16 9 17 17 24 24 23 23 30 34 22 36 41 41 44 70 91 85 93 71 Greatest Support 94 | 40 40 40 40 40 75 88 18 14 28 28 28 28 28 28 46 42 42 42 48 48 55 74 78 94 93 91 Greatest Overweight (x) 25 | . . . . . 6 8 1 . 1 . . . . . . . . . . . . 1 25 . 1 3 Average Overweight (x) . | . . . . . . . . . . . . . . . . . . . . . . . 1 . . . Largest Inventory Capacity 20 | 8 10 10 15 15 15 15 8 5 5 5 5 5 5 5 5 8 8 8 8 8 8 20 20 20 20 20 Average Capacity 11 | 6 9 10 11 15 15 12 7 5 5 5 5 5 5 5 5 6 8 8 8 8 8 12 20 20 20 13 Most Carried 20 | 6 10 10 11 11 15 15 8 5 5 5 5 5 5 5 5 7 8 8 8 8 8 18 20 19 18 18 Average Carried 10 | 3 7 10 10 11 13 12 5 5 4 5 5 5 5 5 4 4 6 7 7 7 8 9 19 17 15 11 Final Capacity 20 | 8 10 10 15 15 15 8 5 5 5 5 5 5 5 5 5 8 8 8 8 8 8 20 20 20 20 5 Final Carried 20 | 6 10 10 11 11 15 8 5 5 5 5 5 5 5 5 4 6 8 8 7 8 8 16 20 16 18 3 Class Distribution -------------------- 26% | Mutant 22% | Hacker-Sprinter 15% | Scavenger-Mutant 12% | Sprinter 11% | Skirmisher 4% | Generator-Mutant 4% | Hacker-Mutant Dominant Class ---------------- Mutant | -10/Materials Mutant | -10/Mines Mutant | -10/Exiles Skirmisher | -9/Mines Scavenger-Mutant | -8/Materials Skirmisher | -7/Factory Sprinter | -7/Lower Caves Sprinter | -7/Lower Caves Hacker-Sprinter | -6/Factory Hacker-Sprinter | -6/Lower Caves Hacker-Sprinter | -6/Lower Caves Hacker-Sprinter | -6/Data Miner Hacker-Sprinter | -5/Proximity Caves Hacker-Sprinter | -5/Factory Hacker-Sprinter | -5/DSF Hacker-Sprinter | -4/Factory Hacker-Sprinter | -4/Upper Caves Hacker-Sprinter | -4/Upper Caves Hacker-Sprinter | -4/Zhirov Sprinter | -3/Proximity Caves Sprinter | -3/Research Sprinter | -3/Armory Generator-Mutant | -3/Lab Generator-Mutant | -2/Research Generator-Mutant | -2/Testing Scavenger-Mutant | -1/Access Resources | -11 -10 -10 -10 -9 -8 -7 -7 -7 -6 -6 -6 -6 -5 -5 -5 -4 -4 -4 -4 -3 -3 -3 -3 -2 -2 -1 ----------- Run | Scr Mat Min Exi Min Mat Fac Low Low Fac Low Low Dat Pro Fac DSF Fac Upp Upp Zhi Pro Res Arm Lab Res Tes Acc Matter Collected 2731 | 268 . 90 10 . 535 692 95 . 120 61 93 . 5 . 8 182 27 23 35 33 . 44 76 . 194 140 Remotely . | . . . . . . . . . . . . . . . . . . . . . . . . . . . Salvage Created 4734 | 28 . 326 . . 1306 1558 134 . 120 . 68 . 10 142 . 165 . . 208 . . 44 76 . . 549 Parts 239 | 7 . 24 . . 52 94 6 . 8 . 2 . 1 5 . 7 . . 2 . . 3 7 . . 21 Haulers Intercepted 2 | . . . . . 1 . . . . . . . . . . 1 . . . . . . . . . . Recyclers Shooed 8 | 1 . . . . 2 3 . . 2 . . . . . . . . . . . . . . . . . Parts Field Recycled . | . . . . . . . . . . . . . . . . . . . . . . . . . . . Retrieved Matter . | . . . . . . . . . . . . . . . . . . . . . . . . . . . Parts Self-Destructed 6 | . . . . . . . 4 . . . . . . . . . . . 2 . . . . . . . Prevented . | . . . . . . . . . . . . . . . . . . . . . . . . . . . Kills | -11 -10 -10 -10 -9 -8 -7 -7 -7 -6 -6 -6 -6 -5 -5 -5 -4 -4 -4 -4 -3 -3 -3 -3 -2 -2 -1 ------- Run | Scr Mat Min Exi Min Mat Fac Low Low Fac Low Low Dat Pro Fac DSF Fac Upp Upp Zhi Pro Res Arm Lab Res Tes Acc Combat Hostiles Destroyed 88 | . . 9 . . 26 30 6 . 1 . 3 . . . . 3 . . . . . . 1 . . 9 Melee 17 | . . . . . . . 3 . 1 . . . . . . 3 . . . . . . 1 . . 9 Guns 46 | . . 6 . . 19 21 . . . . . . . . . . . . . . . . . . . . AOE 24 | . . 3 . . 7 8 3 . . . 3 . . . . . . . . . . . . . . . Classes Destroyed 13 | 1 . 3 . . 6 3 . . . . . . . . . . . . . . . . . . . . Worker 9 | . . . . . 3 5 . . 1 . . . . . . . . . . . . . . . . . Builder 6 | . . 1 . . . 4 . . . . . . . . . 1 . . . . . . . . . . Tunneler 5 | 2 . . . . . 1 . . 1 . . . . . . 1 . . . . . . . . . . Hauler 2 | . . . . . 1 . . . . . . . . . . 1 . . . . . . . . . . Recycler 8 | . . . . . 2 4 . . . . . . . 1 . . . . . . . . . . . 1 Operator 3 | . . . . . . 1 . . 1 . . . . . . 1 . . . . . . . . . . Watcher 5 | . . . . . . 4 . . . . . . . . . . . . . . . 1 . . . . Swarmer 28 | . . 3 . . . 7 5 . . . 3 . . . . 3 . . . . . . . . . 7 Grunt 46 | . . 6 . . 21 19 . . . . . . . . . . . . . . . . . . . . Duelist 2 | . . . . . 1 1 . . . . . . . . . . . . . . . . . . . . Sentry 2 | . . . . . 2 . . . . . . . . . . . . . . . . . . . . . Hunter 2 | . . . . . 2 . . . . . . . . . . . . . . . . . . . . . Programmer 7 | . . . . . . 3 1 . 1 . . . . . . . . . . . . . . . . 2 Decomposer 3 | . . . . . . . . . . . 2 . 1 . . . . . . . . . . . . . Best Kill Streak 18 | 2 . 4 . . 7 18 4 . 2 . 3 . . 1 . 3 . . . . . 1 1 . . 4 Combat Bots Only 10 | . . 4 . . 6 10 4 . 1 . 3 . . . . 3 . . . . . . 1 . . 4 Max Kills in Single Turn 6 | 1 . 2 . . 2 6 1 . 1 . 1 . 1 1 . 2 . . . . . 1 1 . . 1 Gunslinging . | . . . . . . . . . . . . . . . . . . . . . . . . . . . Exploded 3 | . . 2 . . 2 3 1 . . . 1 . . . . . . . . . . . . . . . Melee 1 | . . . . . . . 1 . 1 . . . . . . 1 . . . . . . 1 . . 1 Uniques/NPCs Destroyed 1 | . . . . . . . . . . . . . . . . . . . . . . . 1 . . . A5 (-3/Lab) Combat | -11 -10 -10 -10 -9 -8 -7 -7 -7 -6 -6 -6 -6 -5 -5 -5 -4 -4 -4 -4 -3 -3 -3 -3 -2 -2 -1 -------- Run | Scr Mat Min Exi Min Mat Fac Low Low Fac Low Low Dat Pro Fac DSF Fac Upp Upp Zhi Pro Res Arm Lab Res Tes Acc Damage Taken 13603 | . . 336 . . 2667 2116 918 . 68 . 174 91 23 . 529 660 116 161 . 137 231 139 464 82 589 4102 Core 3385 | . . 60 . . 479 402 206 . 16 . 33 . . . 103 106 66 50 . 69 42 42 78 . 14 1619 Absorbed by Shields 37 | . . . . . . . . . . . . . . . 37 . . . . . . . . . . . Core Remaining (%) 70 | 100 . . . 76 12 . . 13 . . . . 94 . 89 . . . . 74 . . 73 . 99 . Volleys Fired 202 | 2 1 22 . . 80 82 4 . . . 4 . . . . 7 . . . . . . . . . . Largest 2 | 2 2 2 . . 2 2 1 . . . 1 . . . . 1 . . . . . . . . . . Hottest 126 | 60 60 60 . . 126 122 30 . . . 30 . . . . 30 . . . . . . . . . . Shots Fired 340 | 4 2 31 . . 147 141 4 . . . 4 . . . . 7 . . . . . . . . . . Gun 297 | 4 2 28 . . 137 126 . . . . . . . . . . . . . . . . . . . . Cannon . | . . . . . . . . . . . . . . . . . . . . . . . . . . . Launcher 43 | . . 3 . . 10 15 4 . . . 4 . . . . 7 . . . . . . . . . . Special . | . . . . . . . . . . . . . . . . . . . . . . . . . . . Kinetic 122 | 2 1 14 . . 76 29 . . . . . . . . . . . . . . . . . . . . Thermal 154 | . . . . . 57 97 . . . . . . . . . . . . . . . . . . . . Explosive 43 | . . 3 . . 10 15 4 . . . 4 . . . . 7 . . . . . . . . . . Electromagnetic 21 | 2 1 14 . . 4 . . . . . . . . . . . . . . . . . . . . . Robot Hit Streak 14 | 1 . 9 . . 14 13 3 . . . 3 . . . . 2 . . . . . . . . . . Robot Miss Streak 7 | 1 2 2 . . 2 7 7 . . . 1 . . . . 2 . . . . . . . . . . Penetration Max . | . . . . . . . . . . . . . . . . . . . . . . . . . . . Secondary Targets 5 | . . . . . 3 2 . . . . . . . . . . . . . . . . . . . . Max Gunslinging Chain 1 | . . . . . 1 1 . . . . . . . . . . . . . . . . . . . . Shots Hit Robots 338 | 2 . 22 . . 116 103 10 . 9 . 5 1 1 2 . 11 3 . 7 . 1 1 13 . . 31 Core Hits 247 | 2 . 17 . . 82 84 8 . 4 . 7 . 1 1 . 14 1 . 2 . . 1 4 . 1 18 Critical Kills 1 | . . . . . 1 . . . . . . . . . . . . . . . . . . . . . Critical Parts Destroyed 1 | . . . . . 1 . . . . . . . . . . . . . . . . . . . . . Critical Strikes 23 | . . . . . 8 9 1 . . . . . . . . 1 . . . . . . . . . 4 Burn 15 | . . . . . 6 9 . . . . . . . . . . . . . . . . . . . . Destroy 2 | . . . . . 2 . . . . . . . . . . . . . . . . . . . . . Sever 2 | . . . . . . . 1 . . . . . . . . 1 . . . . . . . . . . Puncture 4 | . . . . . . . . . . . . . . . . . . . . . . . . . . 4 Melee Attacks 201 | . . . . . . 7 9 . 12 . 3 5 5 2 . 27 10 2 7 1 26 12 17 . 9 47 Impact 1 | . . . . . . 1 . . . . . . . . . . . . . . . . . . . . Slashing 114 | . . . . . . 5 9 . 12 . 3 5 5 2 . 27 10 2 7 1 26 . . . . . Piercing 85 | . . . . . . . . . . . . . . . . . . . . . . 12 17 . 9 47 Sneak Attacks 18 | . . . . . . 3 1 . 4 . 2 1 1 1 . . 1 . . . . . . . . 4 Combat Hostiles 1 | . . . . . . . 1 . . . . . . . . . . . . . . . . . . . Follow-up Attacks 7 | . . . . . . . . . . . . . . . . . . . 1 . . . 3 . . 3 Damage Inflicted 14377 | 46 . 502 . . 2747 3964 656 . 590 . 515 112 106 182 . 903 268 . 904 . 73 82 855 . 7 1865 Guns 3811 | 45 . 245 . . 1512 2009 . . . . . . . . . . . . . . . . . . . . Cannons . | . . . . . . . . . . . . . . . . . . . . . . . . . . . Explosions 4156 | . . 248 . . 1220 1693 183 . . . 307 . . . . 505 . . . . . . . . . . Melee 6363 | . . . . . . 254 473 . 590 . 208 112 106 182 . 398 268 . 904 . 73 82 855 . . 1858 Ramming 47 | 1 . 9 . . 15 8 . . . . . . . . . . . . . . . . . . 7 7 Kinetic 1323 | 19 . 125 . . 720 459 . . . . . . . . . . . . . . . . . . . . Thermal 2302 | . . . . . 752 1550 . . . . . . . . . . . . . . . . . . . . Explosive 4131 | . . 248 . . 1220 1693 183 . . . 307 . . . . 480 . . . . . . . . . . Electromagnetic 211 | 26 . 120 . . 40 . . . . . . . . . . 25 . . . . . . . . . . Impact 50 | . . . . . . 50 . . . . . . . . . . . . . . . . . . . . Slashing 3518 | . . . . . . 204 473 . 590 . 208 112 106 182 . 398 268 . 904 . 73 . . . . . Piercing 2795 | . . . . . . . . . . . . . . . . . . . . . . 82 855 . . 1858 Highest Corruption 15 | . . . . . . 5 5 5 . . . . . . . . . . . . . . 5 . 15 13 Average Corruption 4 | . . . . . . 2 5 5 . . . . . . . . . . . . . . 4 . 11 8 Corruption Purged . | . . . . . . . . . . . . . . . . . . . . . . . . . . . Effects 35 | . . . . . . 7 4 . . . . . . . . . . . . . . . 12 . 3 9 Message Errors 16 | . . . . . . 4 3 . . . . . . . . . . . . . . . 5 . 1 3 Matter Fused 11 | . . . . . . 1 1 . . . . . . . . . . . . . . . 5 . 2 2 Heat Flow Errors 3 | . . . . . . . . . . . . . . . . . . . . . . . 2 . . 1 Energy Discharges 2 | . . . . . . 1 . . . . . . . . . . . . . . . . . . . 1 Parts Rejected 1 | . . . . . . . . . . . . . . . . . . . . . . . . . . 1 Data Loss (minor) 1 | . . . . . . 1 . . . . . . . . . . . . . . . . . . . . Misdirections 1 | . . . . . . . . . . . . . . . . . . . . . . . . . . 1 Overload Shots . | . . . . . . . . . . . . . . . . . . . . . . . . . . . Overflow Damage 1280 | . . . . . 27 118 192 . 134 . 8 . . 74 . 158 143 . 232 . . . . . . 194 Projectiles . | . . . . . . . . . . . . . . . . . . . . . . . . . . . Explosions 249 | . . . . . 27 103 19 . . . 8 . . . . 92 . . . . . . . . . . Melee 1031 | . . . . . . 15 173 . 134 . . . . 74 . 66 143 . 232 . . . . . . 194 Knockbacks . | . . . . . . . . . . . . . . . . . . . . . . . . . . . Impact . | . . . . . . . . . . . . . . . . . . . . . . . . . . . Kinetic . | . . . . . . . . . . . . . . . . . . . . . . . . . . . Secondary . | . . . . . . . . . . . . . . . . . . . . . . . . . . . Self-Inflicted Damage 759 | . . 41 . . 222 259 31 . . . 33 . . . . 167 . . . . . . . . 3 3 Shots 26 | . . 3 . . 6 9 1 . . . 1 . . . . 6 . . . . . . . . . . Rammed 18 | 1 1 3 . 1 7 1 . . . . . . . . . . . . . . . . . . 2 2 Targets Rammed 22 | 1 1 4 . 1 7 4 . . . . . . . . . . . . . . . . . . 2 2 Kicked 3 | . . . . . . 3 . . . . . . . . . . . . . . . . . . . . Crushed 1 | . . 1 . . . . . . . . . . . . . . . . . . . . . . . . Highest Temperature 401 | 20 20 71 . . 216 261 . . . . . 1 7 . 256 401 226 19 . . . 90 124 18 . 187 Average Temperature 69 | 15 15 23 . . 67 74 . . . . . 1 5 . 181 82 67 7 . . . 46 61 10 . 118 Received Heat Transfer 2457 | . . 129 . . 1287 747 36 . . . . 12 12 . . 9 9 . . . 18 . . 18 54 126 Effects 7 | . . . . . 3 . . . . . . . . . . 2 2 . . . . . . . . . Shutdowns 1 | . . . . . . . . . . . . . . . . 1 . . . . . . . . . . Interference 5 | . . . . . 3 . . . . . . . . . . . 2 . . . . . . . . . Short Circuit 1 | . . . . . . . . . . . . . . . . 1 . . . . . . . . . . Siege Activations . | . . . . . . . . . . . . . . . . . . . . . . . . . . . Robots Corrupted . | . . . . . . . . . . . . . . . . . . . . . . . . . . . Combat Hostiles . | . . . . . . . . . . . . . . . . . . . . . . . . . . . Parts Fried 7 | . . 1 . . . 6 . . . . . . . . . . . . . . . . . . . . Impact Corruptions 1 | . . . . . . 1 . . . . . . . . . . . . . . . . . . . . Robots Melted 1 | . . . . . . 1 . . . . . . . . . . . . . . . . . . . . Combat Hostiles 1 | . . . . . . 1 . . . . . . . . . . . . . . . . . . . . Parts Melted 9 | . . . . . 2 6 1 . . . . . . . . . . . . . . . . . . . Heat Transferred 5513 | . . . . . 2035 3478 . . . . . . . . . . . . . . . . . . . . Parts Sabotaged . | . . . . . . . . . . . . . . . . . . . . . . . . . . . Parts Stolen . | . . . . . . . . . . . . . . . . . . . . . . . . . . . Parts Stripped . | . . . . . . . . . . . . . . . . . . . . . . . . . . . Power Chain Reactions 1 | . . . . . . . . . . . . . . . . 1 . . . . . . . . . . Missiles Intercepted . | . . . . . . . . . . . . . . . . . . . . . . . . . . . Alert | -11 -10 -10 -10 -9 -8 -7 -7 -7 -6 -6 -6 -6 -5 -5 -5 -4 -4 -4 -4 -3 -3 -3 -3 -2 -2 -1 ------- Run | Scr Mat Min Exi Min Mat Fac Low Low Fac Low Low Dat Pro Fac DSF Fac Upp Upp Zhi Pro Res Arm Lab Res Tes Acc Peak Influence 1640 | 10 28 240 . . 312 753 . . 384 . . . . 61 47 278 . . . . 72 103 . 35 1640 1344 Initial 1100 | . 6 10 . . . 119 . . 251 . . . . 56 42 18 . . . . 9 37 . . 13 1100 Average 374 | 3 20 142 . . 135 393 . . 285 . . . . 57 40 147 . . . . 39 81 . 12 1579 1187 Maximum Alert Level 5 | . . 1 . . 1 3 . . 1 . . . . . . 1 . . . . . . . . 5 4 Low Security (%) 52 | 100 100 78 . 100 78 41 . . 7 . . . . 100 100 54 . . . . 100 100 . 100 . . Level 1 19 | . . 21 . . 21 7 . . 92 . . . . . . 45 . . . . . . . . . . Level 2 10 | . . . . . . 44 . . . . . . . . . . . . . . . . . . . . Level 3 2 | . . . . . . 6 . . . . . . . . . . . . . . . . . . . 5 Level 4 13 | . . . . . . . . . . . . . . . . . . . . . . . . . . 94 Level 5 . | . . . . . . . . . . . . . . . . . . . . . . . . . . . High Security . | . . . . . . . . . . . . . . . . . . . . . . . . . . . Max Security 1 | . . . . . . . . . . . . . . . . . . . . . . . . . 99 . Squads Dispatched 51 | . . 1 . . 6 13 . . 3 . . . . . 1 3 . . . . 1 3 . 1 8 11 Investigation 13 | . . 1 . . 3 2 . . 1 . . . . . . 1 . . . . . 1 . 1 . 3 Extermination 4 | . . . . . . 1 . . 1 . . . . . . . . . . . . . . . . 2 Reinforcement 16 | . . . . . 2 5 . . 1 . . . . . 1 2 . . . . 1 2 . . 1 1 Assault 11 | . . . . . . 2 . . . . . . . . . . . . . . . . . . 7 2 Garrison 4 | . . . . . 1 3 . . . . . . . . . . . . . . . . . . . . Intercept 3 | . . . . . . . . . . . . . . . . . . . . . . . . . . 3 Construction Impeded 3 | . . . . . 1 1 . . . . . . . . . 1 . . . . . . . . . . Haulers Reinforced 1 | . . . . . . 1 . . . . . . . . . . . . . . . . . . . . Active Scanning Responses . | . . . . . . . . . . . . . . . . . . . . . . . . . . . Cargo Convoy Interrupts . | . . . . . . . . . . . . . . . . . . . . . . . . . . . Stealth | -11 -10 -10 -10 -9 -8 -7 -7 -7 -6 -6 -6 -6 -5 -5 -5 -4 -4 -4 -4 -3 -3 -3 -3 -2 -2 -1 --------- Run | Scr Mat Min Exi Min Mat Fac Low Low Fac Low Low Dat Pro Fac DSF Fac Upp Upp Zhi Pro Res Arm Lab Res Tes Acc Distress Signals 10 | . . . . . 4 6 . . . . . . . . . . . . . . . . . . . . Communications Jammed . | . . . . . . . . . . . . . . . . . . . . . . . . . . . Distress Signals . | . . . . . . . . . . . . . . . . . . . . . . . . . . . Times Spotted 240 | . 1 9 . . 35 53 7 . 5 . 3 4 12 . 9 18 6 2 . 5 3 5 1 3 19 40 Peak Tracking Total 25 | . 1 4 . . 9 7 4 . 2 . 3 4 12 . 7 7 6 2 . 4 6 4 1 3 25 12 Tactical Retreats 22 | . . . . . 2 3 . . . . . . 2 . 1 4 1 . . 1 1 . . . 1 6 Traps | -11 -10 -10 -10 -9 -8 -7 -7 -7 -6 -6 -6 -6 -5 -5 -5 -4 -4 -4 -4 -3 -3 -3 -3 -2 -2 -1 ------- Run | Scr Mat Min Exi Min Mat Fac Low Low Fac Low Low Dat Pro Fac DSF Fac Upp Upp Zhi Pro Res Arm Lab Res Tes Acc Traps Triggered 12 | . . . . . 1 1 . . 1 . . . . . 5 1 . . . . 1 . . . 1 1 Indirectly . | . . . . . . . . . . . . . . . . . . . . . . . . . . . Trap Hack Attempts . | . . . . . . . . . . . . . . . . . . . . . . . . . . . Triggered . | . . . . . . . . . . . . . . . . . . . . . . . . . . . Disarmed . | . . . . . . . . . . . . . . . . . . . . . . . . . . . Reprogrammed . | . . . . . . . . . . . . . . . . . . . . . . . . . . . Reused . | . . . . . . . . . . . . . . . . . . . . . . . . . . . Traps Extracted . | . . . . . . . . . . . . . . . . . . . . . . . . . . . Installed . | . . . . . . . . . . . . . . . . . . . . . . . . . . . Triggered 1 | . . . . . . . . . . 1 . . . . . . . . . . . . . . . . Machines | -11 -10 -10 -10 -9 -8 -7 -7 -7 -6 -6 -6 -6 -5 -5 -5 -4 -4 -4 -4 -3 -3 -3 -3 -2 -2 -1 ---------- Run | Scr Mat Min Exi Min Mat Fac Low Low Fac Low Low Dat Pro Fac DSF Fac Upp Upp Zhi Pro Res Arm Lab Res Tes Acc Machines Disabled 19 | . . . . . 2 4 . . . . . . . . . 7 3 . . . . 2 1 . . . Max in Single Turn 4 | . . . . . 1 2 . . . . . . . . . 4 1 . . . . 1 1 . . . Garrison Access 5 | . . . . . 1 2 . . . . . . . . . 2 . . . . . . . . . . Machines Sabotaged . | . . . . . . . . . . . . . . . . . . . . . . . . . . . Garrisons Compromised . | . . . . . . . . . . . . . . . . . . . . . . . . . . . Overloaded Fab Kills . | . . . . . . . . . . . . . . . . . . . . . . . . . . . Hacking | -11 -10 -10 -10 -9 -8 -7 -7 -7 -6 -6 -6 -6 -5 -5 -5 -4 -4 -4 -4 -3 -3 -3 -3 -2 -2 -1 --------- Run | Scr Mat Min Exi Min Mat Fac Low Low Fac Low Low Dat Pro Fac DSF Fac Upp Upp Zhi Pro Res Arm Lab Res Tes Acc Machines Accessed 43 | . 1 1 2 . 5 7 . . 4 . . 3 . 1 . 6 1 . 4 . . 2 . 2 . 4 Terminals 18 | . 1 1 . . 2 4 . . . . . . . 1 . 2 . . . . . 2 . 2 . 3 Fabricators 4 | . . . . . . . . . 2 . . . . . . 1 . . . . . . . . . 1 Repair Stations 5 | . . . . . 1 1 . . 2 . . . . . . 1 . . . . . . . . . . Recycling Units . | . . . . . . . . . . . . . . . . . . . . . . . . . . . Scanalyzers 1 | . . . . . 1 . . . . . . . . . . . . . . . . . . . . . Garrison Access 5 | . . . . . 1 2 . . . . . . . . . 2 . . . . . . . . . . Total Hacks 140 | . 3 4 2 . 18 12 . . 17 . . 26 . 1 . 25 1 . 13 . . 5 . 3 . 10 Successful 96 | . 1 . 2 . 13 4 . . 13 . . 26 . 1 . 21 1 . 13 . . . . . . 1 Failed 43 | . 1 4 . . 5 8 . . 4 . . . . . . 4 . . . . . 5 . 3 . 9 Catastrophic 11 | . . 1 . . . 3 . . . . . . . . . 1 . . . . . . . 1 . 5 Database Lockouts 1 | . 1 . . . . . . . . . . . . . . . . . . . . . . . . . Manual 39 | . 3 4 1 . 4 1 . . 1 . . . . . . 14 1 . . . . 5 . 2 . 3 Terminals 50 | . 3 4 . . 7 8 . . . . . . . 1 . 12 . . . . . 5 . 3 . 7 Fabricators 16 | . . . . . . . . . 5 . . . . . . 8 . . . . . . . . . 3 Repair Stations 21 | . . . . . 6 1 . . 12 . . . . . . 2 . . . . . . . . . . Recycling Units . | . . . . . . . . . . . . . . . . . . . . . . . . . . . Scanalyzers 4 | . . . . . 4 . . . . . . . . . . . . . . . . . . . . . Garrison Access 7 | . . . . . 1 3 . . . . . . . . . 3 . . . . . . . . . . Terminal Hacks 54 | . 1 . 2 . 3 1 . . . . . 26 . 1 . 6 1 . 13 . . . . . . . Record 13 | . . . 1 . . . . . . . . 6 . . . . 1 . 5 . . . . . . . Part Schematic 17 | . 1 . . . . . . . . . . 11 . . . 1 . . 4 . . . . . . . Robot Schematic 6 | . . . . . . . . . . . . 6 . . . . . . . . . . . . . . Prototype ID Bank 7 | . . . . . . . . . . . . 3 . . . . . . 4 . . . . . . . Open DSF 1 | . . . . . . . . . . . . . . 1 . . . . . . . . . . . . Branch Access Points 3 | . . . . . 1 1 . . . . . . . . . 1 . . . . . . . . . . Alert Level 1 | . . . . . . . . . . . . . . . . 1 . . . . . . . . . . Unreport Threat 1 | . . . . . . . . . . . . . . . . 1 . . . . . . . . . . Transport Status 1 | . . . . . . . . . . . . . . . . 1 . . . . . . . . . . Hauler Manifests 1 | . . . . . 1 . . . . . . . . . . . . . . . . . . . . . Zone Layout 2 | . . . . . 1 . . . . . . . . . . 1 . . . . . . . . . . EX-Prototype ID Bank 1 | . . . 1 . . . . . . . . . . . . . . . . . . . . . . . Fabricator Hacks 7 | . . . . . . . . . 3 . . . . . . 3 . . . . . . . . . 1 Network Status 2 | . . . . . . . . . 1 . . . . . . 1 . . . . . . . . . . Load Schematic 3 | . . . . . . . . . 1 . . . . . . 1 . . . . . . . . . 1 Build 2 | . . . . . . . . . 1 . . . . . . 1 . . . . . . . . . . Repair Station Hacks 15 | . . . . . 3 1 . . 9 . . . . . . 2 . . . . . . . . . . Scan Component 8 | . . . . . 2 . . . 5 . . . . . . 1 . . . . . . . . . . Repair 6 | . . . . . 1 . . . 4 . . . . . . 1 . . . . . . . . . . Refit 1 | . . . . . . 1 . . . . . . . . . . . . . . . . . . . . Recycling Unit Hacks . | . . . . . . . . . . . . . . . . . . . . . . . . . . . Scanalyzer 4 | . . . . . 4 . . . . . . . . . . . . . . . . . . . . . Insert Component 2 | . . . . . 2 . . . . . . . . . . . . . . . . . . . . . Analyze 2 | . . . . . 2 . . . . . . . . . . . . . . . . . . . . . Garrison Access Hacks 5 | . . . . . 1 2 . . . . . . . . . 2 . . . . . . . . . . Seal Access 5 | . . . . . 1 2 . . . . . . . . . 2 . . . . . . . . . . Unauthorized Hacks 11 | . . . . . 2 . . . 1 . . . . . . 8 . . . . . . . . . . Terminals 5 | . . . . . 2 . . . . . . . . . . 3 . . . . . . . . . . Assimilate 1 | . . . . . . . . . . . . . . . . 1 . . . . . . . . . . Botnet 2 | . . . . . 1 . . . . . . . . . . 1 . . . . . . . . . . Operators 2 | . . . . . 1 . . . . . . . . . . 1 . . . . . . . . . . Fabricators 6 | . . . . . . . . . 1 . . . . . . 5 . . . . . . . . . . Report 1 | . . . . . . . . . . . . . . . . 1 . . . . . . . . . . Prioritize 1 | . . . . . . . . . . . . . . . . 1 . . . . . . . . . . Liberate 1 | . . . . . . . . . . . . . . . . 1 . . . . . . . . . . Fabnet 2 | . . . . . . . . . 1 . . . . . . 1 . . . . . . . . . . Haulers 1 | . . . . . . . . . . . . . . . . 1 . . . . . . . . . . Repair Stations . | . . . . . . . . . . . . . . . . . . . . . . . . . . . Recycling Units . | . . . . . . . . . . . . . . . . . . . . . . . . . . . Scanalyzers . | . . . . . . . . . . . . . . . . . . . . . . . . . . . Garrison Access . | . . . . . . . . . . . . . . . . . . . . . . . . . . . Data Cores Recovered 1 | . . . . . . . . . 1 . . . . . . . . . . . . . . . . . Used . | . . . . . . . . . . . . . . . . . . . . . . . . . . . Hacking Detections 26 | . 1 1 . . 4 4 . . 4 . . . . . . 4 . . . . . 2 . 2 . 4 Full Trace Events 11 | . . 1 . . 1 2 . . 1 . . . . . . 1 . . . . . 1 . 1 . 3 Feedback Events 2 | . . . . . . 1 . . . . . . . . . . . . . . . . . . . 1 Corruption 2 | . . . . . . 1 . . . . . . . . . . . . . . . . . . . 1 Feedback Blocked . | . . . . . . . . . . . . . . . . . . . . . . . . . . . Robot Schematics Acquired 6 | . . . . . . . . . . . . 6 . . . . . . . . . . . . . . Robots Built . | . . . . . . . . . . . . . . . . . . . . . . . . . . . Authchips . | . . . . . . . . . . . . . . . . . . . . . . . . . . . Time . | . . . . . . . . . . . . . . . . . . . . . . . . . . . Total Robot Build Rating . | . . . . . . . . . . . . . . . . . . . . . . . . . . . Part Schematics Acquired 19 | . 1 . . . 2 . . . . . . 11 . . . 1 . . 4 . . . . . . . Parts Built 2 | . . . . . . . . . 1 . . . . . . 1 . . . . . . . . . . Authchips 1 | . . . . . . . . . . . . . . . . 1 . . . . . . . . . . Time 83 | . . . . . . . . . 58 . . . . . . 25 . . . . . . . . . . Total Part Build Rating 4 | . . . . . . . . . 3 . . . . . . 1 . . . . . . . . . . Parts Repaired 6 | . . . . . 1 . . . 4 . . . . . . 1 . . . . . . . . . . Time 274 | . . . . . 26 . . . 168 . . . . . . 80 . . . . . . . . . . Parts Recycled . | . . . . . . . . . . . . . . . . . . . . . . . . . . . Recycled Matter . | . . . . . . . . . . . . . . . . . . . . . . . . . . . Retrieved Matter . | . . . . . . . . . . . . . . . . . . . . . . . . . . . Retrieved Components . | . . . . . . . . . . . . . . . . . . . . . . . . . . . Parts Scanalyzed 2 | . . . . . 2 . . . . . . . . . . . . . . . . . . . . . Part Schematics Acquired 2 | . . . . . 2 . . . . . . . . . . . . . . . . . . . . . Parts Damaged . | . . . . . . . . . . . . . . . . . . . . . . . . . . . Bothacking | -11 -10 -10 -10 -9 -8 -7 -7 -7 -6 -6 -6 -6 -5 -5 -5 -4 -4 -4 -4 -3 -3 -3 -3 -2 -2 -1 ------------ Run | Scr Mat Min Exi Min Mat Fac Low Low Fac Low Low Dat Pro Fac DSF Fac Upp Upp Zhi Pro Res Arm Lab Res Tes Acc Used RIF Installer . | . . . . . . . . . . . . . . . . . . . . . . . . . . . Robots Hacked 2 | . . . . . . 1 . . . . . . . . . . . . . . . . . . 1 . Non-combat 1 | . . . . . . 1 . . . . . . . . . . . . . . . . . . . . Combat 1 | . . . . . . . . . . . . . . . . . . . . . . . . . 1 . Robot Hacks Applied 1 | . . . . . . 1 . . . . . . . . . . . . . . . . . . . . check_alert 1 | . . . . . . 1 . . . . . . . . . . . . . . . . . . . . Relay Couplers Released 4 | . . . . . 1 3 . . . . . . . . . . . . . . . . . . . . Machine Destruction 4 | . . . . . 1 3 . . . . . . . . . . . . . . . . . . . . Fabnet Peak Effective % 3 | . . . . . . . . . . . . . 3 3 3 1 1 1 1 3 3 3 3 1 1 . Autooverrided 1 | . . . . . . . . . . . . . . . . . . . . . . . . . 1 . Robots Rewired . | . . . . . . . . . . . . . . . . . . . . . . . . . . . Allies Hacked . | . . . . . . . . . . . . . . . . . . . . . . . . . . . Hacks Repelled . | . . . . . . . . . . . . . . . . . . . . . . . . . . . Allies | -11 -10 -10 -10 -9 -8 -7 -7 -7 -6 -6 -6 -6 -5 -5 -5 -4 -4 -4 -4 -3 -3 -3 -3 -2 -2 -1 -------- Run | Scr Mat Min Exi Min Mat Fac Low Low Fac Low Low Dat Pro Fac DSF Fac Upp Upp Zhi Pro Res Arm Lab Res Tes Acc Total Allies 5 | . . 3 . . . . . . . . . . . . . 1 . . . . . . . . 1 . Largest Group 3 | . . 3 1 1 1 . . . . . . . . . . 1 . . . . . . . . 1 . Highest-Rated Group 49 | . . 40 16 16 16 . . . . . . . . . . 10 . . . . . . . . 49 . Highest-Rated Ally 49 | . . 16 16 16 16 . . . . . . . . . . 10 . . . . . . . . 49 . Total Orders . | . . . . . . . . . . . . . . . . . . . . . . . . . . . Ally Attacks 29 | . . 20 . . 7 . . . . . . . . . . . . . . . . . . . 2 . Total Damage 409 | . . 198 . . 102 . . . . . . . . . . . . . . . . . . . 109 . Kills 3 | . . 2 . . . . . . . . . . . . . . . . . . . . . . 1 . Allies Corrupted . | . . . . . . . . . . . . . . . . . . . . . . . . . . . Allies Melted 1 | . . . . . . . . . . . 1 . . . . . . . . . . . . . . . Intel | -11 -10 -10 -10 -9 -8 -7 -7 -7 -6 -6 -6 -6 -5 -5 -5 -4 -4 -4 -4 -3 -3 -3 -3 -2 -2 -1 ------- Run | Scr Mat Min Exi Min Mat Fac Low Low Fac Low Low Dat Pro Fac DSF Fac Upp Upp Zhi Pro Res Arm Lab Res Tes Acc Robot Analysis Total 128 | . . . . . . . . . . . . 128 . . . . . . . . . . . . . . Derelict Logs Recovered 6 | . . . . . . . . . . 1 1 . 1 . . . 2 1 . . . . . . . . Drone Launches . | . . . . . . . . . . . . . . . . . . . . . . . . . . . Drone Recoveries . | . . . . . . . . . . . . . . . . . . . . . . . . . . . Exploration | -11 -10 -10 -10 -9 -8 -7 -7 -7 -6 -6 -6 -6 -5 -5 -5 -4 -4 -4 -4 -3 -3 -3 -3 -2 -2 -1 ------------- Run | Scr Mat Min Exi Min Mat Fac Low Low Fac Low Low Dat Pro Fac DSF Fac Upp Upp Zhi Pro Res Arm Lab Res Tes Acc Turns Passed 8024 | 106 131 563 530 154 944 1361 154 53 452 82 129 43 78 15 84 561 137 173 63 329 122 215 588 37 108 812 Spaces Moved 9053 | 55 77 291 329 96 346 1408 283 183 555 353 382 101 285 44 145 748 394 662 181 368 275 321 226 121 175 649 Core 202 | 4 . . . . 1 1 . . . . . . . . . . . . . . . . 11 . . 185 Treads 1451 | 51 77 291 329 96 308 261 . . . . . . . . . . . . . . . . . . . 38 Legs 118 | . . . . . 37 81 . . . . . . . . . . . . . . . . . . . . Wheels 2 | . . . . . . 2 . . . . . . . . . . . . . . . . . . . . Hover 298 | . . . . . . . 37 . 4 . . . . . . . . . . . . . . . . 257 Flight 6982 | . . . . . . 1063 246 183 551 353 382 101 285 44 145 748 394 662 181 368 275 321 215 121 175 169 Fastest Speed 6 | 50 160 160 160 160 120 26 29 29 23 23 23 23 23 23 6 17 17 17 20 20 17 17 25 17 17 26 Average Speed 53 | 152 160 160 160 160 163 64 37 29 26 23 23 23 23 23 19 19 17 19 20 20 19 22 81 18 41 80 Slowest Speed 1300 | 160 160 160 160 160 350 695 110 29 120 23 26 23 23 23 23 20 17 20 20 20 20 111 1300 19 103 320 Overloaded Moves 40 | . . . . . . . . . . . . . . . 27 . . 13 . . . . . . . . Propulsion Burnouts . | . . . . . . . . . . . . . . . . . . . . . . . . . . . Robots Hopped 29 | . . . . . . 11 1 . . . . 1 2 . 2 5 . . . . 1 . . 1 5 . Cave-ins Triggered 2 | . . . . . . . . . . . . . . . . . . . . . 1 . . . 1 . Teleports 2 | . . . . . . . . . . . . . . . . . . . . . . 1 1 . . . Exploration Rate (%) 44 | 4 20 62 69 47 31 39 63 28 17 67 56 82 63 2 97 22 53 78 61 60 9 27 99 5 28 17 Regions Visited 26 Branch Regions 16 Pre-discovered Areas 34 | . . . 1 . . . . . . . . 28 1 . . . 1 . 3 . . . . . . . Known Exits Taken 15 | . . . . . . 1 . . 1 1 1 1 1 1 . 1 1 1 1 1 1 1 1 . . . Unknown Exits Taken 10 | 1 1 1 1 1 1 . 1 1 . . . . . . . . . . . . . . . 1 1 . Scrap Searched 14 | . . . . 1 . . 2 . . 2 5 . . . . . 1 2 . 1 . . . . . . Spaces Dug 68 | . . 5 . . . 3 . . 1 . . . 4 . . 13 . 2 . 1 19 7 . . 9 4 Terrain Destroyed 308 | . . 18 . . 31 58 32 . 1 . 27 . 4 . . 95 . 2 . 1 19 7 . . 9 4 Melee 63 | . . . . . . 3 . . 1 . . . 4 . . 13 . 2 . 1 19 7 . . 9 4 Projectile . | . . . . . . . . . . . . . . . . . . . . . . . . . . . AOE 245 | . . 18 . . 31 55 32 . . . 27 . . . . 82 . . . . . . . . . . Terrain Rammed . | . . . . . . . . . . . . . . . . . . . . . . . . . . . Walls Destroyed . | . . . . . . . . . . . . . . . . . . . . . . . . . . . Machines Disabled . | . . . . . . . . . . . . . . . . . . . . . . . . . . . Actions | -11 -10 -10 -10 -9 -8 -7 -7 -7 -6 -6 -6 -6 -5 -5 -5 -4 -4 -4 -4 -3 -3 -3 -3 -2 -2 -1 --------- Run | Scr Mat Min Exi Min Mat Fac Low Low Fac Low Low Dat Pro Fac DSF Fac Upp Upp Zhi Pro Res Arm Lab Res Tes Acc Total 11558 | 70 82 357 335 96 577 1695 305 182 840 354 413 111 287 45 195 1106 449 698 197 621 304 452 608 133 188 858 Wait 1668 | . . 35 . . 77 109 . . 236 . 21 7 . . 4 313 44 26 1 252 3 88 317 5 . 130 Move 8972 | 54 76 290 328 95 345 1386 280 182 554 352 381 98 280 43 140 737 393 661 180 367 272 320 225 118 166 649 Hop 26 | . . . . . . 10 1 . . . . 1 2 . 2 5 . . . . 1 . . 1 3 . Pick Up 82 | 6 3 1 3 . 19 13 3 . 4 1 . . . . . 5 2 1 1 1 . 9 5 2 1 2 Fast Attach 135 | 7 . 1 . . 14 25 6 . 16 . 2 . . . 5 8 1 3 3 . 5 3 14 . . 22 Attach 54 | . . . . . 11 9 2 . 2 . . . . . 1 3 1 . 2 . . 2 7 6 3 5 Detach 35 | . . . . . . 8 . . 2 . . . . . . 1 . 1 1 . . 3 14 1 4 . Swap 43 | . 1 2 1 . 13 10 . . 4 . . . . . . . . 2 1 . . 6 1 . . 2 Drop 94 | . . 2 3 . 11 32 . . 10 1 2 . . . . . . 2 2 . 2 11 12 . . 4 Fire 202 | 2 1 22 . . 80 82 4 . . . 4 . . . . 7 . . . . . . . . . . Melee 182 | . . . . . . 7 9 . 12 . 3 5 5 2 . 27 8 2 6 1 21 10 13 . 9 42 Ram 4 | . . . . . . 1 . . . . . . . . . . . . . . . . . . 1 2 Kick 3 | . . . . . . 3 . . . . . . . . . . . . . . . . . . . . Crush 14 | 1 1 4 . 1 7 . . . . . . . . . . . . . . . . . . . . . Escape Stasis 44 | . . . . . . . . . . . . . . . 43 . . . . . . . . . 1 . Rewire . | . . . . . . . . . . . . . . . . . . . . . . . . . . . Trap . | . . . . . . . . . . . . . . . . . . . . . . . . . . . Miscellaneous . | . . . . . . . . . . . . . . . . . . . . . . . . . . . Route ------- -11/Scrapyard -10/Materials -10/Mines (discovered 2 exits: [*Mat] / *Exi) -10/Exiles -9/Mines -8/Materials -7/Factory (discovered 4 exits: *Sto x2 / *Low x2) -7/Lower Caves -7/Lower Caves -6/Factory -6/Lower Caves -6/Lower Caves (discovered 2 exits: *Fac / *Dat) -6/Data Miner -5/Proximity Caves -5/Factory -5/DSF -4/Factory (discovered 3 exits: *Res / *Upp x2) -4/Upper Caves -4/Upper Caves -4/Zhirov -3/Proximity Caves -3/Research (discovered 3 exits: Res / *Arm / Qua) -3/Armory -3/Lab -2/Research -2/Testing -1/Access History --------- Turn | Location | Event 5 | -11/Scrapyard | Discovered new exit (range 15) 107 | -11/Scrapyard | Entered Materials 165 | -10/Materials | Central database locked down 189 | -10/Materials | Discovered new exit (range 12) 238 | -10/Materials | Entered Mines 305 | -10/Mines | Build established: Mutant 562 | -10/Mines | Assisted by bots powering up and referring to "LRC-V3" 582 | -10/Mines | Discovered new exit (range 7) 665 | -10/Mines | Received a Rocket Launcher from a helpful Derelict 717 | -10/Mines | Discovered new exit (range 13) 769 | -10/Mines | Deemed a non-threat by the Exiles lab entrance 801 | -10/Mines | Entered Exiles 801 | -10/Exiles | Accompanied by 1 ally 841 | -10/Exiles | Met 8R-AWN 865 | -10/Exiles | Met EX-HEX 937 | -10/Exiles | Met EX-DEC 965 | -10/Exiles | Learned location of Zion (-7) 997 | -10/Exiles | Met EX-BIN 1021 | -10/Exiles | Aligned with FarCom system 1022 | -10/Exiles | Given EX-Vault access code 1061 | -10/Exiles | Opened EX-Vault 1077 | -10/Exiles | Found Modified TNC 1113 | -10/Exiles | Warned to stay clear of 0b10 Research branches 1312 | -10/Exiles | Discovered new exit (range 14) 1331 | -10/Exiles | Left Exiles lab with Modified TNC 1331 | -10/Exiles | Entered Mines 1331 | -9/Mines | Accompanied by 1 ally 1410 | -9/Mines | Found a hidden stash of uninstalled traps 1479 | -9/Mines | Discovered new exit (range 3) 1485 | -9/Mines | Entered Materials 1485 | -8/Materials | Accompanied by 1 ally 1485 | -8/Materials | Evolved 4 slots: Propulsion x1, Utility x3 1538 | -8/Materials | Repaired Lgt. Treads 1635 | -8/Materials | Build established: Skirmisher 1748 | -8/Materials | Core integrity fell below 50% 1781 | -8/Materials | Lost 13 parts (2p3n3u5w) 2064 | -8/Materials | Build established: Scavenger-Mutant 2161 | -8/Materials | Garrison activated, responded to threat 2229 | -8/Materials | Core integrity fell below 20% 2238 | -8/Materials | Lost 3 parts (1p1n1w) 2262 | -8/Materials | Discovered new exit (range 14) 2429 | -8/Materials | Entered Factory 2429 | -7/Factory | Evolved 2 slots: Propulsion x2 2862 | -7/Factory | Build established: Skirmisher 2863 | -7/Factory | Garrison activated, responded to threat 3122 | -7/Factory | Destroyed 10 combat bots 3168 | -7/Factory | Lost 3 parts (3n) 3240 | -7/Factory | Lost 4 parts (2n2w) 3368 | -7/Factory | Core integrity fell below 50% 3629 | -7/Factory | First assault squad dispatched 3703 | -7/Factory | Identified exit to Storage 3703 | -7/Factory | Identified exit to Lower Caves 3790 | -7/Factory | Entered Lower Caves 3869 | -7/Lower Caves | Lost 9 parts (1p4n2u2w) 3916 | -7/Lower Caves | Attracted the attention of an 0b10 checkpoint 3924 | -7/Lower Caves | Core integrity fell below 20% 3942 | -7/Lower Caves | Discovered new exit (range 5) 3944 | -7/Lower Caves | Entered another Lower Caves area 3961 | -7/Lower Caves | Lost 3 parts (2n1u) 3992 | -7/Lower Caves | Encountered a Warlord checkpoint 3994 | -7/Lower Caves | Discovered new exit (range 9) 3997 | -7/Lower Caves | Entered Factory 3997 | -6/Factory | Evolved 2 slots: Utility x2 4044 | -6/Factory | Repaired Cesium-ion Thruster 4077 | -6/Factory | Repaired VTOL Module 4136 | -6/Factory | Build established: Sprinter 4139 | -6/Factory | Repaired Imp. VTOL Module 4178 | -6/Factory | Repaired Katana 4295 | -6/Factory | Fabricated Imp. VTOL Module? 4447 | -6/Factory | Discovered new exit (range 8) 4449 | -6/Factory | Identified exit to Lower Caves 4449 | -6/Factory | Entered Lower Caves 4515 | -6/Lower Caves | Discovered new exit (range 11) 4518 | -6/Lower Caves | Identified exit to Lower Caves 4525 | -6/Lower Caves | Learned Factory terminal intel 4531 | -6/Lower Caves | Entered another Lower Caves area 4533 | -6/Lower Caves | Learned Factory stockpile data 4571 | -6/Lower Caves | Discovered new exit (range 5) 4657 | -6/Lower Caves | Discovered new exit (range 11) 4659 | -6/Lower Caves | Identified exit to Data Miner 4660 | -6/Lower Caves | Entered Data Miner 4660 | -6/Data Miner | Discovered new exit (range 6) 4663 | -6/Data Miner | Met Data Miner 4669 | -6/Data Miner | Learned location of Section 7 (-2) 4669 | -6/Data Miner | Acquired the access code to Warlord's prototype stash 4672 | -6/Data Miner | Received God Mode back door access code from Data Miner 4678 | -6/Data Miner | Interfaced with the Data Conduit 4700 | -6/Data Miner | Build established: Hacker-Sprinter 4703 | -6/Data Miner | Identified exit to Proximity Caves 4703 | -6/Data Miner | Entered Proximity Caves 4780 | -5/Proximity Caves | Discovered new exit (range 5) 4781 | -5/Proximity Caves | Identified exit to Factory 4781 | -5/Proximity Caves | Entered Factory 4781 | -5/Factory | Evolved 2 slots: Propulsion x1, Utility x1 4783 | -5/Factory | Loaded intel: 261 machine locations 4784 | -5/Factory | Loaded intel: 28 terminal locations 4796 | -5/Factory | Identified exit to DSF 4796 | -5/Factory | Entered DSF 4797 | -5/DSF | Loaded intel: 3 machine locations 4799 | -5/DSF | Discovered new exit (range 21) 4803 | -5/DSF | Identified exit to Factory 4811 | -5/DSF | Additional patrols routed to DSF 4880 | -5/DSF | Entered Factory 4880 | -4/Factory | Evolved 2 slots: Power x1, Propulsion x1 4881 | -4/Factory | Loaded intel: 279 machine locations 5010 | -4/Factory | Repaired Cld. Cesium-ion Thruster 5029 | -4/Factory | Identified exit to Upper Caves 5047 | -4/Factory | Spotted B-86 Titan 5249 | -4/Factory | Fabricated Sml. Storage Unit (x1) 5422 | -4/Factory | Discovered new exit (range 9) 5423 | -4/Factory | Identified exit to Research 5441 | -4/Factory | Entered Upper Caves 5455 | -4/Upper Caves | Lost 4 parts (1n3u) 5479 | -4/Upper Caves | Found Alien Artifact 5479 | -4/Upper Caves | Identified Dimensional Node Initializer 5479 | -4/Upper Caves | Initialized slip node 5508 | -4/Upper Caves | Attracted the attention of an 0b10 checkpoint 5511 | -4/Upper Caves | Learned location of 2 exits from Research 5525 | -4/Upper Caves | Acquired the password to a Derelict Tinkerer's latest research 5531 | -4/Upper Caves | Found Prototype Special Weapon 5576 | -4/Upper Caves | Caught by Unaware searching for contraband prototypes 5577 | -4/Upper Caves | Discovered new exit (range 8) 5578 | -4/Upper Caves | Identified exit to Upper Caves 5578 | -4/Upper Caves | Entered another Upper Caves area 5731 | -4/Upper Caves | Learned location of 1 exit from Research 5748 | -4/Upper Caves | Encountered a Warlord checkpoint 5748 | -4/Upper Caves | Discovered new exit (range 6) 5749 | -4/Upper Caves | Identified exit to Zhirov 5751 | -4/Upper Caves | Entered Zhirov 5751 | -4/Zhirov | Discovered new exit (range 3) 5755 | -4/Zhirov | Met Zhirov 5786 | -4/Zhirov | Found Alien Artifact 5786 | -4/Zhirov | Identified Integrated Dissipator 5786 | -4/Zhirov | Installed Integrated Dissipator, increased core heat dissipation (+20) 5800 | -4/Zhirov | Found Alien Artifact 5809 | -4/Zhirov | Zhirov requested help retrieving the SGEMP Prototype 5814 | -4/Zhirov | Identified exit to Proximity Caves 5814 | -4/Zhirov | Entered Proximity Caves 5819 | -3/Proximity Caves | Spotted B-86 Titan 5996 | -3/Proximity Caves | Received a Behemoth hack from an annoying Tinkerer 6083 | -3/Proximity Caves | Build established: Sprinter 6140 | -3/Proximity Caves | Discovered exit to Research (range 19) 6143 | -3/Proximity Caves | Entered Research 6143 | -3/Research | Evolved 2 slots: Propulsion x1, Utility x1 6144 | -3/Research | Identified exit to Armory 6144 | -3/Research | Identified exit to Quarantine 6144 | -3/Research | Identified exit to Research 6145 | -3/Research | Loaded intel: 123 machine locations 6186 | -3/Research | Crushed by falling debris 6245 | -3/Research | Found Enh. Force Lance 6265 | -3/Research | Entered Armory 6266 | -3/Armory | Loaded intel: 63 machine locations 6458 | -3/Armory | Identified Transdimensional Reconstructor 6458 | -3/Armory | Warped through subspace to slip node 6458 | -3/Armory | Discovered new exit (range 1) 6458 | -3/Armory | Identified exit to Lab 6480 | -3/Armory | Entered Lab 6486 | -3/Lab | Discovered exit to Research (range 9) 6488 | -3/Lab | Hidden lab's door opened automatically 6488 | -3/Lab | Sensor layout match revealed 6489 | -3/Lab | Gained access to the hidden lab's interior 6510 | -3/Lab | Found Transdimensional Reconstructor 6510 | -3/Lab | Warped through subspace 6518 | -3/Lab | Found Prototype Hackware 6519 | -3/Lab | Found Prototype Protection 6519 | -3/Lab | Identified Med. Regenerative Plating 6550 | -3/Lab | Found Alien Artifact 6550 | -3/Lab | Identified Core Expander 6550 | -3/Lab | Installed Core Expander, added new Power slot 6556 | -3/Lab | Found Alien Artifact 6556 | -3/Lab | Identified Integrated Mediator 6556 | -3/Lab | Installed Integrated Mediator, increased core attachment efficiency. 6572 | -3/Lab | Detected by scanners 6583 | -3/Lab | Confronted by A5 6613 | -3/Lab | Destroyed A5 6770 | -3/Lab | Found Med. Regenerative Plating 7052 | -3/Lab | Found Prototype Energy Cannon 7052 | -3/Lab | Identified Potential Cannon 7057 | -3/Lab | Found Prototype Energy Gun 7057 | -3/Lab | Identified Hyp. EM Gauss Rifle 7068 | -3/Lab | Entered Research 7068 | -2/Research | Evolved 2 slots: Propulsion x2 7069 | -2/Research | Loaded intel: 111 machine locations 7088 | -2/Research | Spotted B-90 Cyclops 7092 | -2/Research | Discovered new exit (range 19) 7105 | -2/Research | Entered Testing 7106 | -2/Testing | Maximum security lockdown engaged 7106 | -2/Testing | Loaded intel: 69 machine locations 7128 | -2/Testing | Found Exp. Force Field 7147 | -2/Testing | Crushed by falling debris 7148 | -2/Testing | System corruption reached 10% 7178 | -2/Testing | Lost 3 parts (3n) 7182 | -2/Testing | Discovered new exit (range 17) 7213 | -2/Testing | Entered Access 7213 | -1/Access | Evolved 2 slots: Propulsion x1, Utility x1 7214 | -1/Access | Loaded intel: 104 machine locations 7242 | -1/Access | Lost 3 parts (1n2u) 7572 | -1/Access | Lost 3 parts (3n) 7637 | -1/Access | Build established: Scavenger-Mutant 7683 | -1/Access | Released all parts (8) 7692 | -1/Access | Identified Deep Network Scanner 7705 | -1/Access | Core integrity fell below 50% 7722 | -1/Access | Lost 7 parts (2p4n1u) 7797 | -1/Access | System corruption reached 10% 7991 | -1/Access | Intercept squad dispatched 7997 | -1/Access | First assault squad dispatched 7999 | -1/Access | Core integrity fell below 20% 8021 | -1/Access | Spotted Tracker 8021 | -1/Access | Spotted Tracker 8025 | -1/Access | Identified Molecular Deconstructor 8025 | -1/Access | Destroyed by Tracker with Linked Autogun Last Messages --------------- 07996_ Slug penetrates Wall. 07997_ ALERT: Significant disruption in Zone 6O, multiple assault carriers dispatched. 07997_ Slammed into H-88 Terminator. 07998_ Penetrated by Slug. 08001_ Slug penetrates Wall. 08003_ Penetrated by Slug. 08003_ Plasma Lance destroyed. 08004_ Penetrated by Slug. 08004_ Adv. Remote Datajack destroyed. 08006_ Penetrated by Slug. 08009_ 3LZDCGJO/QW:RMSO57FC 08009_ Penetrated by Slug. 08021_ Cmb. Linear Gravjet temporarily disabled. Tracker: "THREAT CONFIRMED. DEPLOY COMBAT PROGRAMMER." 08023_ Connecting with Terminal... Feedback: System corruption (+1%). 08023_ ALERT: Suspicious activity at Terminal A001. Dispatching Investigation squad. 08025_ Identified Molecular Deconstructor. Map ----- +----------------------------------------------------+ | ?????????????????????????????????????????????????? | | ????????"????????????????????????????????????????? | | ??????""""???????????????????????????????????????? | | ?????"""""???????????????????????????????????????? | | ??????"""""??????????????????????????????????????? | | ??????""""???????????????????????????????????????? | | ???????"?????????????????????????????????????????? | | ?????????????????????????????????????????????????? | | ????????????????????????BB????BB?????????????????? | | ????????????????????????BB????BB?????????????????? | | ?????????????????????????????????????????????????? | | ???????????????????????""""""""""????????????????? | | ???????????????????????""""""""""????????????????? | | ???????????????????????""""""""""????????????????? | | ???????????????????????""""""""""????????????????? | | ?""??????????????????????????????????????????????? | | ?""??????????????????????""""""??????????????????? | | ?""??????????????????????"????"??????????????????? | | ??S??????????????????????"?""?"??????????????????? | | ?""??????????????????????"?"??"??????????????????? | | ?""??????????????????????"????"??????????????????? | | ?""??????????????????????""""""?????###???####???? | | ????????????????????????????????????# #???? | | ????????????????????????????????????# #???? | | ??????????????????????""""""""""""??# #???? | | ??????????"???????????#""@ #??# " #???? | | ?????????"""??????????#"" #??# """ #???? | | ??????????"""?????????#"" #??# """ #???? | | ???????????"??????????#T #??# " #???? | | ??????????????????????#"" #??? #???? | | ??????????????????????#"" #????? ?????? | | ??????????o???????????#"" s########+######## | | ????????????????? w | | ???????????????? u s | | ????????????????#+################################ | | ?????????????????????????????????????????????????? | | ?????????????????????????????????????????????????? | | ????"?????????""?????????????????????????????????? | | ???"""????????""?????????????????????????????????? | | ????"""???????""?????????????????????????????????? | | ?????"????????T??????????????????????????????????? | | ??????????????""?????????????????????????????????? | | ??????????????""?????????????????????????????????? | | ??????????????""?????????????????????????????????? | | ?????????????????????????????????????????????????? | | ?????????????????????????????????????????????????? | | ?????????????????????????????????????????????????? | | ?????????????????????????????????????????????????? | | ?????????????????????????????????????????????????? | | ?????????????????????????????????????????????????? | +----------------------------------------------------+ Best States ------------- Heat Dissipation 98 Energy Generation 61 Energy Capacity 415 Matter Stores 300 Matter Capacity 300 Sight Range 22 Robot Scan Range 15 Terrain Scan Range 16 Terrain Scan Density 10 Power Amplification 40 Additional Mass Support 16 Armor Coverage 450 Weapon Shielding 66 Evasion (%) 69 Targeting Accuracy 6 Melee Accuracy 13 Target Analysis 8 Recoil Reduction 4 Force Boost 3 Offensive Hacking 25 Defensive Hacking 10 Authchip Count 1 Item Schematics ----------------- Huge Storage Unit | -10/Materials | Hacked Imp. VTOL Module | -8/Materials | Scanalyzed Mni. Grenade Launcher | -8/Materials | Scanalyzed Combat Drone Bay | -6/Data Miner | Free Lgt. Regenerative Plating | -6/Data Miner | Free Cld. Gravmag System | -6/Data Miner | Free Prc. Energy Filter | -6/Data Miner | Free Field Propulsion Array | -6/Data Miner | Free Thunder Hammer | -6/Data Miner | Free Railgun | -6/Data Miner | Free Adv. Particle Charger | -6/Data Miner | Free Dispersion Rifle | -6/Data Miner | Free Antimissile System | -6/Data Miner | Free Q-thruster | -6/Data Miner | Free Sml. Storage Unit | -4/Factory | Hacked Assault Drone Bay | -4/Zhirov | Free Exp. Heat Sink | -4/Zhirov | Free Exp. Optical Array | -4/Zhirov | Free Imp. Arc Thrower | -4/Zhirov | Free Robot Schematics ------------------ B-60 Warrior | -6/Data Miner | Free L-41 Fighter | -6/Data Miner | Free A-15 Conveyor | -6/Data Miner | Free S-27 Virus | -6/Data Miner | Free A-27 Freighter | -6/Data Miner | Free H-66 Slayer | -6/Data Miner | Free Fabricated ------------ Imp. VTOL Module | x1 | -6/Factory Sml. Storage Unit | x1 | -4/Factory | Authchip Alien Tech Used ----------------- Dimensional Node Initializer Integrated Dissipator Transdimensional Reconstructor Core Expander Integrated Mediator Achievements -------------- None Challenges ------------ None Game ------ Seed BlastMicroDisintegrator Manual? 0 Play Time 01:52:10 Cumulative 448.7 hours Start 2022.01.26 @ 09:42:00 End 2022.01.26 @ 17:00:06 Sessions 7 Manual Loads 0 Difficulty Rogue Special Mode None Game No. 436 Rogue 221 Adventurer 112 Explorer 103 Win Type - Total 29 Types 21/0/5/2/0/0/0/1/0 Lore% 86 Gallery% 90 Achievement% 80 Wizard Run 0 Options --------- ASCII 0 Keyboard 1 Movement Vi Keybinds 1 Fullscreen 2 Font 18/SmallcapsGlow Map View 76x50 Tactical HUD 1 Map Filters NONE Filters NONE Steam 1 RUN: b3d8731a-97ac-47d7-a62e-8dcf9673cf65